Cogmind - Beta 16 @@@ ROGUE MODE // 2026.01.13 @ 15:20:27 Player: KingCain Result: Destroyed by L-31 Rogue with Katana Performance ------------- Evolutions (1) 500 Regions Visited (2) 400 Robots Destroyed (11) 55 Value Destroyed (281) 281 Prototype IDs (0) 0 Alien Tech Used (0) 0 Bonus (0) 0 TOTAL SCORE: 1236 Bonus ------- None Cogmind --------- Core Integrity 0/400 Matter 285/300 Energy 100/100 System Corruption 0% Temperature Cool (0) Movement Core (700) Ox13 Location -9/Materials Parts ------- > --- POWER (1) -------- (None) > --- PROPULSION (4) --- (None) > --- UTILITY (2) ------ Large Storage Unit Large Storage Unit > --- WEAPON (2) ------- (None) > --- INVENTORY (15) --- Assault Rifle EMP Blaster EMP Blaster EMP Blaster Peak State ------------ > --- POWER ------------ Improved Ion Engine > --- PROPULSION ------- Light Treads Light Treads Light Treads Improved Treads > --- UTILITY ---------- Large Storage Unit Large Storage Unit > --- WEAPON ----------- Light Assault Rifle EMP Blaster > --- INVENTORY -------- Assault Rifle EMP Blaster EMP Blaster EMP Blaster [Rating: 12] Favorites ----------- Power Light Ion Engine Engine Light Ion Engine Propulsion Light Treads Treads Light Treads Utility Large Storage Unit Storage Large Storage Unit Weapon Light Assault Rifle Ballistic Gun Light Assault Rifle Launcher EMP Blaster Build | -11 -10 -9 ------- Run | Yrd Mat Mat Slots Evolved 2 | . . 2 Power . | . . . Propulsion 2 | . . 2 Utility . | . . . Weapon . | . . . Parts Attached 13 | 6 . 7 Power 3 | 2 . 1 Engine 3 | 2 . 1 Core . | . . . Reactor . | . . . Propulsion 5 | 2 . 3 Treads 5 | 2 . 3 Leg . | . . . Wheel . | . . . Hover . | . . . Flight . | . . . Utility 2 | . . 2 Device . | . . . Storage 2 | . . 2 Processor . | . . . Hackware . | . . . Protection . | . . . Artifact . | . . . Weapon 3 | 2 . 1 Energy Gun . | . . . Energy Cannon . | . . . Ballistic Gun 2 | 2 . . Ballistic Cannon . | . . . Launcher 1 | . . 1 Special Weapon . | . . . Impact Weapon . | . . . Slashing Weapon . | . . . Piercing Weapon . | . . . Special Melee Weapon . | . . . Unidentified Prototypes . | . . . Parts Lost 6 | . . 6 Power 1 | . . 1 Propulsion 3 | . . 3 Utility . | . . . Weapon 2 | . . 2 Highest Loss Streak 6 | . . 6 To Critical Strikes . | . . . Average Backups 1 | . . 1 Power . | . . . Propulsion . | . . . Utility . | . . . Weapon 1 | . . 1 Tool/Special . | . . . Unused Backups 3 | . . 3 Power . | . . . Propulsion . | . . . Utility . | . . . Weapon 3 | . . 3 Tool/Special . | . . . Average Slot Usage (%) 72 | . 71 73 Engine 11 | . 14 10 Treads 28 | . 28 28 Storage 10 | . . 12 Ballistic Gun 19 | . 28 17 Launcher 2 | . . 3 Peak Build Rating 12 | 5 5 12 Average Rating 6 | 3 5 7 On Entrance 3 | . 5 5 Avg Prop Armor Cover (%) . | . . . Naked Turns . | . . . Heaviest Build 52 | 6 6 52 Greatest Support 83 | 40 40 83 Greatest Overweight (x) 17 | . . 17 Average Overweight (x) . | . . . Largest Inventory Capacity 15 | 5 5 15 Average Capacity 9 | 5 5 10 Most Carried 5 | . . 5 Average Carried 1 | . . 1 Final Capacity 15 | 5 5 15 Final Carried 4 | . . 4 Class Distribution -------------------- 100% | Mutant Dominant Class ---------------- Mutant | -10/Materials Mutant | -9/Materials Resources | -11 -10 -9 ----------- Run | Yrd Mat Mat Matter Collected 388 | 272 . 116 Remotely . | . . . Salvage Created 360 | 51 . 309 Parts 27 | . . 27 Haulers Intercepted . | . . . Recyclers Shooed . | . . . Parts Field Recycled . | . . . Retrieved Matter . | . . . Parts Self-Destructed . | . . . Prevented . | . . . Parts Restored . | . . . Kills | -11 -10 -9 ------- Run | Yrd Mat Mat Combat Hostiles Destroyed 4 | . . 4 Guns 2 | . . 2 AOE 2 | . . 2 Classes Destroyed 5 | 1 . 4 Worker 1 | . . 1 Builder 5 | . . 5 Recycler 1 | 1 . . Grunt 1 | . . 1 Sentry 3 | . . 3 Best Kill Streak 7 | 1 . 7 Combat Bots Only 2 | . . 2 Max Kills in Single Turn 2 | 1 . 2 Gunslinging . | . . . Exploded 1 | . . 1 Melee . | . . . Uniques/NPCs Destroyed . | . . . Combat | -11 -10 -9 -------- Run | Yrd Mat Mat Hostile Shots Fired 103 | . . 103 Missed 28 | . . 28 Hits 75 | . . 75 Melee 11 | . . 11 Projectile 64 | . . 64 Critical Strikes 2 | . . 2 Damage Taken 1439 | . . 1439 Core 422 | . . 422 Absorbed by Shields . | . . . Core Remaining (%) 100 | 100 100 . Volleys Fired 23 | 3 . 20 Largest 2 | 2 . 2 Hottest 53 | 40 . 53 Shots Fired 46 | 6 . 40 Gun 35 | 6 . 29 Cannon . | . . . Launcher 11 | . . 11 Special . | . . . Kinetic 35 | 6 . 29 Thermal . | . . . Explosive . | . . . Electromagnetic 11 | . . 11 Robot Hit Streak 4 | 1 . 4 Robot Miss Streak 4 | 1 . 4 Penetration Max . | . . . Secondary Targets . | . . . Shots Hit Robots 22 | 3 . 19 Core Hits 19 | 4 . 15 Critical Kills . | . . . Critical Parts Destroyed . | . . . Critical Strikes . | . . . Melee Attacks . | . . . Impact . | . . . Slashing . | . . . Piercing . | . . . Sneak Attacks . | . . . Combat Hostiles . | . . . Follow-up Attacks . | . . . Damage Inflicted 785 | 30 . 755 Guns 166 | 22 . 144 Cannons . | . . . Explosions 611 | . . 611 Melee . | . . . Ramming 8 | 8 . . Kinetic 166 | 22 . 144 Thermal 168 | . . 168 Explosive 231 | . . 231 Electromagnetic 212 | . . 212 Impact . | . . . Slashing . | . . . Piercing . | . . . Highest Corruption . | . . . Average Corruption . | . . . Corruption Purged . | . . . Corruption Blocked . | . . . Overload Shots . | . . . Overflow Damage 68 | . . 68 Projectiles . | . . . Explosions 68 | . . 68 Melee . | . . . Knockbacks . | . . . Impact . | . . . Kinetic . | . . . Secondary . | . . . Self-Inflicted Damage 246 | . . 246 Shots 5 | . . 5 Rammed 3 | 2 . 1 Targets Rammed 3 | 2 . 1 Kicked . | . . . Crushed . | . . . Highest Temperature 35 | . . 35 Average Temperature 12 | . . 12 Received Heat Transfer 336 | . . 336 Siege Activations . | . . . Martial Activations . | . . . Shielding Activations . | . . . Robots Disrupted . | . . . Combat Hostiles . | . . . Robots Corrupted . | . . . Combat Hostiles . | . . . Parts Fried . | . . . Impact Corruptions . | . . . Robots Melted . | . . . Combat Hostiles . | . . . Parts Melted . | . . . Heat Transferred 150 | . . 150 Parts Sabotaged . | . . . Parts Stolen . | . . . Parts Stripped . | . . . Power Chain Reactions 1 | . . 1 Alert | -11 -10 -9 ------- Run | Yrd Mat Mat Maximum Alert Level 1 | . . 1 Low Security (%) 87 | 100 100 82 Level 1 12 | . . 17 Level 2 . | . . . Level 3 . | . . . Level 4 . | . . . Level 5 . | . . . High Security . | . . . Max Security . | . . . Peak Influence 287 | 5 . 287 Initial . | . . . Average 37 | . . 52 Influence Increases 361 | 5 . 356 Destroy 0b10 Robot/C 80 | . . 80 Destroy 0b10 Robot/NC 35 | 5 . 30 Destroy Leader 40 | . . 40 Successful Hack 4 | . . 4 Disable Machine 120 | . . 120 Destroy Structure 82 | . . 82 Influence Decreases 174 | 5 . 169 Time Decay 114 | 5 . 109 Lost Part 60 | . . 60 Squads Dispatched 2 | . . 2 Investigation . | . . . Extermination . | . . . Reinforcement 2 | . . 2 Assault . | . . . Garrison . | . . . Intercept . | . . . Searches Triggered . | . . . Construction Impeded . | . . . Haulers Reinforced . | . . . Active Scanning Responses . | . . . Cargo Convoy Interrupts . | . . . Stealth | -11 -10 -9 --------- Run | Yrd Mat Mat Distress Signals 2 | . 1 1 Communications Jammed . | . . . Distress Signals . | . . . Times Spotted 11 | . 1 10 Peak Tracking Total 5 | . 3 5 Tactical Retreats . | . . . Traps | -11 -10 -9 ------- Run | Yrd Mat Mat Traps Triggered . | . . . Indirectly . | . . . Trap Hack Attempts . | . . . Triggered . | . . . Disarmed . | . . . Reprogrammed . | . . . Reused . | . . . Traps Extracted . | . . . Installed . | . . . Triggered . | . . . Machines | -11 -10 -9 ---------- Run | Yrd Mat Mat Machines Disabled 8 | . . 8 Max in Single Turn 4 | . . 4 Machines Repaired . | . . . Machines Dismantled . | . . . Machines Sabotaged . | . . . Overloaded Fab Kills . | . . . Hacking | -11 -10 -9 --------- Run | Yrd Mat Mat Machines Accessed 3 | . 2 1 Terminals 3 | . 2 1 Fabricators . | . . . Repair Stations . | . . . Recycling Units . | . . . Scanalyzers . | . . . Garrison Access . | . . . Total Hacks 5 | . 3 2 Successful 2 | . . 2 Failed 3 | . 3 . Catastrophic 1 | . 1 . Database Lockouts . | . . . Manual . | . . . Terminals 5 | . 3 2 Fabricators . | . . . Repair Stations . | . . . Recycling Units . | . . . Scanalyzers . | . . . Garrison Access . | . . . Terminal Hacks 2 | . . 2 Locate Traps 1 | . . 1 Dispatch Records 1 | . . 1 Fabricator Hacks . | . . . Repair Station Hacks . | . . . Recycling Unit Hacks . | . . . Scanalyzer . | . . . Garrison Access Hacks . | . . . Unauthorized Hacks . | . . . Terminals . | . . . Fabricators . | . . . Repair Stations . | . . . Recycling Units . | . . . Scanalyzers . | . . . Garrison Access . | . . . Data Cores Recovered . | . . . Used . | . . . Hacking Detections 2 | . 2 . Full Trace Events . | . . . Feedback Events . | . . . Feedback Blocked . | . . . Robot Schematics Acquired . | . . . Robots Built . | . . . Authchips . | . . . Time . | . . . Total Robot Build Rating . | . . . Part Schematics Acquired . | . . . Parts Built . | . . . Authchips . | . . . Time . | . . . Total Part Build Rating . | . . . Part Studies Acquired . | . . . Parts Repaired . | . . . Time . | . . . Parts Recycled . | . . . Recycled Matter . | . . . Retrieved Matter . | . . . Retrieved Components . | . . . Parts Scanalyzed . | . . . Part Schematics Acquired . | . . . Parts Damaged . | . . . Bothacking | -11 -10 -9 ------------ Run | Yrd Mat Mat Used RIF Installer . | . . . Robots Hacked . | . . . Non-combat . | . . . Combat . | . . . Robot Hacks Applied . | . . . Relay Couplers Released . | . . . Fabnet Peak Effective % . | . . . Robots Rewired . | . . . Allies Hacked . | . . . Hacks Repelled . | . . . Allies | -11 -10 -9 -------- Run | Yrd Mat Mat Total Allies . | . . . Largest Group . | . . . Highest-Rated Group . | . . . Highest-Rated Ally . | . . . Total Orders . | . . . Ally Attacks . | . . . Total Damage . | . . . Kills . | . . . Allies Corrupted . | . . . Allies Melted . | . . . Intel | -11 -10 -9 ------- Run | Yrd Mat Mat Active Infowar (turns) . | . . . Robot Analysis Total . | . . . Derelict Logs Recovered . | . . . Drone Launches . | . . . Drone Recoveries . | . . . Exploration | -11 -10 -9 ------------- Run | Yrd Mat Mat Turns Passed 663 | 107 76 480 Spaces Moved 339 | 55 48 236 Core 5 | 1 . 4 Treads 334 | 54 48 232 Legs . | . . . Wheels . | . . . Hover . | . . . Flight . | . . . Fastest Speed 50 | 50 160 160 Average Speed 168 | 158 160 173 Slowest Speed 900 | 160 160 900 Overloaded Moves . | . . . Propulsion Burnouts . | . . . Robots Hopped . | . . . Potential Cave-ins . | . . . Cave-ins Triggered . | . . . Exploration Rate (%) 14 | 4 13 25 Regions Visited 2 Branch Regions . Pre-discovered Areas . | . . . Known Exits Taken . | . . . Unknown Exits Taken 2 | 1 1 . Scrap Searched . | . . . Spaces Dug . | . . . Terrain Destroyed 80 | . . 80 Melee . | . . . Projectile . | . . . AOE 80 | . . 80 Terrain Rammed . | . . . Walls Destroyed . | . . . Machines Disabled . | . . . Actions | -11 -10 -9 --------- Run | Yrd Mat Mat Total 385 | 66 47 272 Wait . | . . . Move 338 | 55 47 236 Hop . | . . . Pick Up 4 | . . 4 Fast Attach 12 | 6 . 6 Attach 1 | . . 1 Detach 1 | . . 1 Swap . | . . . Drop 4 | 1 . 3 Fire 23 | 3 . 20 Melee . | . . . Ram . | . . . Kick . | . . . Crush 2 | 1 . 1 Escape Stasis . | . . . Rewire . | . . . Trap . | . . . Miscellaneous . | . . . Route ------- -11/Scrapyard -10/Materials -9/Materials (discovered 1 exit: [*Mat]) History --------- Turn | Location | Event 15 | -11/Scrapyard | Discovered new exit (range 16) 108 | -11/Scrapyard | Entered Materials 168 | -10/Materials | Discovered new exit (range 9) 184 | -10/Materials | Entered another Materials area 184 | -9/Materials | Evolved 2 slots: Propulsion x2 318 | -9/Materials | Build established: Mutant 584 | -9/Materials | Discovered new exit (range 15) 650 | -9/Materials | Core integrity fell below 50% 661 | -9/Materials | Core integrity fell below 20% 664 | -9/Materials | Destroyed by L-31 Rogue with Katana Last Messages --------------- 00591_ The unstable cave ceiling collapses. 00604_ U-05 Engineer lays Concrete. 00605_ The unstable cave ceiling collapses. 00605_ U-05 Engineer builds a Door. 00609_ U-05 Engineer builds a Wall. 00617_ The unstable cave ceiling collapses. 00621_ Lgt. Treads destroyed. 00622_ The unstable cave ceiling collapses. 00623_ U-05 Engineer builds a Door. 00625_ Lgt. Treads destroyed. 00628_ U-05 Engineer lays Concrete. 00630_ U-05 Engineer builds a Wall. 00634_ Lgt. Treads destroyed. 00640_ EMP Blaster destroyed. 00640_ K-01 Serf collects debris. 00645_ U-05 Engineer builds a Wall. 00646_ Imp. Ion Engine destroyed. 00656_ ALERT: Hostiles spotted, dispatching reinforcements to Terminal M004. 00657_ Lgt. Assault Rifle destroyed. Map ----- +----------------------------------------------------+ | ????????????# [ # # #??????? | | ????????????# [[ # ##########??????? | | ????????????# [ + #???????????????? | | ????????????# # #???????????????? | | ????????????# # #???????????????? | | ????????????# / ####????????????? | | ????????????## # ###/# ####??????????? | | ?????????????# #??????????? | | ?????## ????## %= ##?????????? | | ?????# ## ! #?????????? | | ?????# = ##?????????? | | = + ! !%[= = ##?????????? | | ?????# * [ #?????????? | | ?????# # # ### #?????????? | | ?????### ##?????????? | | ???????# " #??????????? | | ???????# """ =% #??????????? | | ?????? " "#??????????? | | ???? " Yg "#??????????? | | ???? " "#??????????? | | ????+?## " "" ; #??????????? | | ???????# # """"" =; #??????????? | | ???????# # ; #??????????? | | ???????# ?#######;#;;;;;;;###??????????? | | ?????????? w l #??????????? | | ?????????? @ < #??????????? | | ?????????? #??????????? | | ???????????+#############+####??????????? | | ???????????????????????? ?????????????? | | ???????????????????????? ?????????????? | | ???????????????????????? ?????????????? | | ???????????????????????? ?????????????? | | ???????????????????????? ?????????????? | | ???????????????????????? ?????????????? | | ???????????????????????? ?????????????? | | ????????????????????????###?????????????? | | | | | | | | | | | | | | | | | | | | | | | | | | | | | +----------------------------------------------------+ Best States ------------- Heat Dissipation 28 Energy Generation 12 Energy Capacity 265 Matter Stores 300 Matter Capacity 300 Sight Range 16 Terrain Scan Density 10 Evasion (%) 40 Recoil Reduction 4 Item Schematics ----------------- None Robot Schematics ------------------ None Fabricated ------------ Nothing Repaired ---------- Nothing Studied --------- None Alien Tech Used ----------------- None Achievements -------------- None Challenges ------------ None Game ------ Seed IonicTitaniumCanceller Manual? 0 Play Time 00:06:28 Cumulative 9.9 hours Start 2026.01.13 @ 15:14:47 End 2026.01.13 @ 15:20:27 Sessions 1 Manual Loads 0 Difficulty Rogue Special Mode None Game No. 30 Rogue 30 Adventurer 0 Explorer 0 Win Type - Total 0 Types 0/0/0/0/0/0/0/0/0/0 Lore% 4 Gallery% 14 Achievement% 10 Wizard Run 0 Options --------- Layout 1 ASCII 0 Keyboard 1 Movement Vi Keybinds 0 Fullscreen 1 Font 24/Smallcaps Map View 50x35 Zoom Use 0% Tactical HUD 1 Map Filters NONE Filters NONE Steam 1 RUN: 9d22831c-a399-4c40-82b1-631305753f2d